lending/lending_fUSD_20240305
["ID","MTS","AMOUNT","RATE_DAILY","PERIOD"]
[316710572,1709597460752,-500.0,0.00022794,2]
[316710573,1709597460762,-500.0,0.00022794,2]
[316710574,1709597460771,-500.0,0.00022794,2]
[316710575,1709597460780,-500.0,0.00022794,2]
[316710576,1709597460789,-500.0,0.00022794,2]
[316710577,1709597460799,-500.0,0.00022794,2]
[316710578,1709597460810,-500.0,0.00022794,2]
[316710579,1709597460820,-500.0,0.00022794,2]
[316710580,1709597460829,-500.0,0.00022794,2]
[316710581,1709597460838,-500.0,0.00022794,2]
[316710582,1709597460847,-500.0,0.00022794,2]
[316710583,1709597460857,-505.7070668,0.00022794,2]
[316710584,1709597460866,-500.0,0.00022794,2]
[316710585,1709597460876,-582.6750658,0.00022794,2]
[316710586,1709597460885,-500.0,0.00022794,2]
[316710587,1709597460895,-500.0,0.00022794,2]
[316710588,1709597460904,-500.0,0.00022794,2]
[316710589,1709597460914,-500.0,0.00022794,2]
[316710590,1709597460927,-500.0,0.00022794,2]
[316710591,1709597460937,-652.38,0.00022794,2]
[316710592,1709597460946,-500.0,0.00022794,2]
[316710593,1709597460956,-512.80418189,0.00022794,2]
[316710594,1709597460966,-652.38,0.00022794,2]
[316710595,1709597460976,-567.15583256,0.00022794,2]
[316710596,1709597460986,-299.60802048,0.00022794,2]
[316710597,1709597460997,-500.0,0.00022794,2]
[316710598,1709597461006,-500.0,0.00022794,2]
[316710599,1709597461015,-500.0,0.00022794,2]
[316710600,1709597461025,-500.0,0.00022794,2]
[316710601,1709597461035,-224.89174088,0.00022794,2]
[316710602,1709597461045,-500.0,0.00022794,2]
[316710603,1709597461057,-500.0,0.00022794,2]
[316710604,1709597461068,-500.0,0.00022794,2]
[316710605,1709597461078,-288.05742512,0.00022794,2]
[316710606,1709597461088,-500.0,0.00022794,2]
[316710607,1709597461098,-500.0,0.00022794,2]
[316710608,1709597461107,-500.0,0.00022794,2]
[316710609,1709597461117,-500.0,0.00022794,2]
[316710610,1709597461126,-500.0,0.00022794,2]
[316710611,1709597461135,-521.48802816,0.00022794,2]
[316710612,1709597461145,-500.0,0.00022794,2]
[316710613,1709597461154,-500.0,0.00022794,2]
[316710614,1709597461163,-500.0,0.00022794,2]
[316710615,1709597461173,-500.0,0.00022794,2]
[316710616,1709597461182,-500.0,0.00022794,2]
[316710617,1709597461192,-500.0,0.00022794,2]
[316710618,1709597461201,-508.18630144,0.00022794,2]
[316710619,1709597461211,-500.0,0.00022794,2]
[316710620,1709597461222,-500.0,0.00022794,2]
[316710621,1709597461230,-507.04369857,0.00022794,2]
[316710622,1709597461240,-500.0,0.00022794,2]
[316710623,1709597461250,-500.0,0.00022794,2]
[316710624,1709597461260,-500.0,0.00022794,2]
[316710625,1709597461270,-500.0,0.00022794,2]
[316710626,1709597461280,-281.02602291,0.00022794,2]
[316710627,1709597461290,-500.0,0.00022794,2]
[316710628,1709597461299,-500.0,0.00022794,2]
[316710629,1709597461311,-500.0,0.00022794,2]
[316710630,1709597461320,-500.0,0.00022794,2]
[316710631,1709597461330,-500.0,0.00022794,2]
[316710632,1709597461340,-500.0,0.00022794,2]
[316710633,1709597461349,-2355.8,0.00022794,2]
[316710634,1709597461359,-2355.8,0.00022794,2]
[316710635,1709597461368,-500.0,0.00022794,2]
[316710636,1709597461378,-2355.8,0.00022794,2]
[316710637,1709597461390,-500.0,0.00022794,2]
[316710638,1709597461399,-2355.8,0.00022794,2]
[316710639,1709597461408,-574.89,0.00022794,2]
[316710640,1709597461417,-574.89,0.00022794,2]
[316710641,1709597461426,-500.0,0.00022794,2]
[316710642,1709597461437,-500.0,0.00022794,2]
[316710643,1709597461449,-500.0,0.00022794,2]
[316710644,1709597461458,-500.0,0.00022794,2]
[316710645,1709597461468,-500.0,0.00022794,2]
[316710646,1709597461478,-500.0,0.00022794,2]
[316710647,1709597461488,-500.0,0.00022794,2]
[316710648,1709597461498,-500.0,0.00022794,2]
[316710649,1709597461507,-614.29665965,0.00022794,2]
[316710650,1709597461517,-500.0,0.00022794,2]
[316710651,1709597461526,-500.0,0.00022794,2]
[316710652,1709597461538,-500.0,0.00022794,2]
[316710653,1709597461551,-1136.78,0.00022794,2]
[316710654,1709597461565,-500.0,0.00022794,2]
[316710655,1709597461575,-503.4828305,0.00022794,2]
[316710656,1709597461585,-1136.78,0.00022794,2]
[316710657,1709597461595,-500.0,0.00022794,2]
[316710658,1709597461606,-225.10643638,0.00022794,2]
[316710659,1709597461615,-500.0,0.00022794,2]
[316710660,1709597461625,-548.43,0.00022794,2]
[316710661,1709597461634,-548.43,0.00022794,2]
[316710662,1709597461644,-500.0,0.00022794,2]
[316710663,1709597461653,-500.0,0.00022794,2]
[316710664,1709597461662,-548.43,0.00022794,2]
[316710665,1709597461672,-516.23555513,0.00022794,2]
[316710666,1709597461681,-500.0,0.00022794,2]
[316710667,1709597461691,-548.43,0.00022794,2]
[316710668,1709597461701,-500.0,0.00022794,2]
[316710669,1709597461711,-500.0,0.00022794,2]
[316710670,1709597461721,-500.0,0.00022794,2]
[316710671,1709597461731,-500.0,0.00022794,2]
[316710672,1709597461740,-624.43,0.00022794,2]
[316710673,1709597461750,-624.43,0.00022794,2]
[316710674,1709597461759,-500.0,0.00022794,2]
[316710675,1709597461768,-500.0,0.00022794,2]
[316710676,1709597461777,-500.0,0.00022794,2]
[316710677,1709597461786,-500.0,0.00022794,2]
[316710678,1709597461795,-500.0,0.00022794,2]
[316710679,1709597461805,-500.0,0.00022794,2]
[316710680,1709597461816,-500.0,0.00022794,2]
[316710681,1709597461825,-500.0,0.00022794,2]
[316710682,1709597461834,-500.0,0.00022794,2]
[316710683,1709597461844,-500.0,0.00022794,2]
[316710684,1709597461853,-500.0,0.00022794,2]
[316710685,1709597461863,-500.0,0.00022794,2]
[316710686,1709597461873,-500.0,0.00022794,2]
[316710687,1709597461882,-500.0,0.00022794,2]
[316710688,1709597461891,-500.0,0.00022794,2]
[316710689,1709597461901,-500.0,0.00022794,2]
[316710690,1709597461912,-500.0,0.00022794,2]
[316710691,1709597461921,-500.0,0.00022794,2]
[316710692,1709597461931,-500.0,0.00022794,2]
[316710693,1709597461942,-500.0,0.00022794,2]
[316710694,1709597461953,-500.0,0.00022794,2]
[316710695,1709597461965,-500.0,0.00022794,2]
[316710696,1709597461975,-500.0,0.00022794,2]
[316710697,1709597461985,-500.0,0.00022794,2]
[316710698,1709597461995,-500.0,0.00022794,2]
[316710699,1709597462005,-500.0,0.00022794,2]
[316710700,1709597462015,-560.38579105,0.00022794,2]
[316710701,1709597462025,-500.0,0.00022794,2]
[316710702,1709597462034,-500.0,0.00022794,2]
[316710703,1709597462043,-500.0,0.00022794,2]
[316710704,1709597462053,-500.0,0.00022794,2]
[316710705,1709597462065,-500.0,0.00022794,2]
[316710706,1709597462075,-505.23864248,0.00022794,2]
[316710707,1709597462085,-3040.56695361,0.00022794,2]
[316710708,1709597462783,-280.86304639,0.00022794,2]
[316710709,1709597462794,-500.0,0.00022794,2]
[316710710,1709597462803,-500.0,0.00022794,2]
[316710711,1709597462821,-500.0,0.00022794,2]
[316710712,1709597462831,-500.0,0.00022794,2]
[316710713,1709597462841,-540.36,0.00022794,2]
[316710714,1709597462853,-540.36,0.00022794,2]
[316710715,1709597462863,-540.36,0.00022794,2]
[316710716,1709597462874,-500.0,0.00022794,2]
[316710717,1709597462886,-500.0,0.00022794,2]
[316710718,1709597462897,-500.0,0.00022794,2]
[316710719,1709597462907,-500.0,0.00022794,2]
[316710720,1709597462917,-500.0,0.00022794,2]
[316710721,1709597462927,-500.0,0.00022794,2]
[316710722,1709597462937,-540.36,0.00022794,2]
[316710723,1709597462946,-500.0,0.00022794,2]
[316710724,1709597462956,-500.0,0.00022794,2]
[316710725,1709597462966,-500.0,0.00022794,2]
[316710726,1709597462976,-500.0,0.00022794,2]
[316710727,1709597462986,-500.0,0.00022794,2]
[316710728,1709597462996,-500.0,0.00022794,2]
[316710729,1709597463006,-500.0,0.00022794,2]
[316710730,1709597463015,-500.0,0.00022794,2]
[316710731,1709597463026,-500.0,0.00022794,2]
[316710732,1709597463035,-500.0,0.00022794,2]
[316710733,1709597463045,-500.0,0.00022794,2]
[316710734,1709597463054,-500.0,0.00022794,2]
[316710735,1709597463072,-512.39839583,0.00022794,2]
[316710736,1709597463081,-500.0,0.00022794,2]
[316710737,1709597463091,-500.0,0.00022794,2]
[316710738,1709597463101,-500.0,0.00022794,2]
[316710739,1709597463110,-500.0,0.00022794,2]
[316710740,1709597463120,-500.0,0.00022794,2]
[316710741,1709597463130,-500.0,0.00022794,2]
[316710742,1709597463139,-500.0,0.00022794,2]
[316710743,1709597463148,-500.0,0.00022794,2]
[316710744,1709597463158,-500.0,0.00022794,2]
[316710745,1709597463167,-500.0,0.00022794,2]
[316710746,1709597463178,-500.0,0.00022794,2]
[316710747,1709597463188,-500.0,0.00022794,2]
[316710748,1709597463197,-500.0,0.00022794,2]
[316710749,1709597463207,-500.0,0.00022794,2]
[316710750,1709597463217,-500.0,0.00022794,2]
[316710751,1709597463226,-500.0,0.00022794,2]
[316710752,1709597463236,-500.0,0.00022794,2]
[316710753,1709597463245,-500.0,0.00022794,2]
[316710754,1709597463255,-500.0,0.00022794,2]
[316710755,1709597463264,-500.0,0.00022794,2]
[316710756,1709597463273,-500.0,0.00022794,2]
[316710757,1709597463283,-500.0,0.00022794,2]
[316710758,1709597463292,-500.0,0.00022794,2]
[316710759,1709597463301,-500.0,0.00022794,2]
[316710760,1709597463315,-500.0,0.00022794,2]
[316710761,1709597463324,-500.0,0.00022794,2]
[316710762,1709597463334,-500.0,0.00022794,2]
[316710763,1709597463343,-500.0,0.00022794,2]
[316710764,1709597463353,-500.0,0.00022794,2]
[316710765,1709597463363,-3369.76,0.00022794,2]
[316710766,1709597463372,-3369.76,0.00022794,2]
[316710767,1709597463382,-3369.76,0.00022794,2]
[316710768,1709597463391,-3369.76,0.00022794,2]
[316710769,1709597463400,-3369.76,0.00022794,2]
[316710770,1709597463410,-500.0,0.00022794,2]
[316710771,1709597463420,-500.0,0.00022794,2]
[316710772,1709597463430,-500.0,0.00022794,2]
[316710773,1709597463439,-500.0,0.00022794,2]
[316710774,1709597463450,-547.18,0.00022794,2]
[316710775,1709597463460,-500.0,0.00022794,2]
[316710776,1709597463471,-500.0,0.00022794,2]
[316710777,1709597463482,-547.18,0.00022794,2]
[316710778,1709597463493,-500.0,0.00022794,2]
[316710779,1709597463503,-500.0,0.00022794,2]
[316710780,1709597463513,-500.0,0.00022794,2]
[316710781,1709597463523,-547.18,0.00022794,2]
[316710782,1709597463533,-547.18,0.00022794,2]
[316710783,1709597463543,-500.0,0.00022794,2]
[316710784,1709597463554,-779.59,0.00022794,2]
[316710785,1709597463566,-779.59,0.00022794,2]
[316710786,1709597463576,-548.31,0.00022794,2]
[316710787,1709597463585,-500.0,0.00022794,2]
[316710788,1709597463595,-779.59,0.00022794,2]
[316710789,1709597463605,-500.0,0.00022794,2]
[316710790,1709597463616,-500.0,0.00022794,2]
[316710791,1709597463626,-779.59,0.00022794,2]
[316710792,1709597463637,-500.0,0.00022794,2]
[316710793,1709597463648,-802.91,0.00022794,2]
[316710794,1709597463658,-802.91,0.00022794,2]
[316710795,1709597463668,-802.91,0.00022794,2]
[316710796,1709597463678,-802.91,0.00022794,2]
[316710797,1709597463688,-500.0,0.00022794,2]
[316710798,1709597463699,-802.91,0.00022794,2]
[316710799,1709597463709,-500.0,0.00022794,2]
[316710800,1709597463720,-500.0,0.00022794,2]
[316710801,1709597463730,-500.0,0.00022794,2]
[316710802,1709597463740,-500.0,0.00022794,2]
[316710803,1709597463751,-500.0,0.00022794,2]
[316710804,1709597463762,-500.0,0.00022794,2]
[316710805,1709597463773,-721.8,0.00022794,2]
[316710806,1709597463782,-500.0,0.00022794,2]
[316710807,1709597463791,-721.8,0.00022794,2]
[316710808,1709597463800,-500.0,0.00022794,2]
[316710809,1709597463810,-721.8,0.00022794,2]
[316710810,1709597463819,-721.8,0.00022794,2]
[316710811,1709597463829,-721.8,0.00022794,2]
[316710812,1709597463838,-500.0,0.00022794,2]
[316710813,1709597463849,-500.0,0.00022794,2]
[316710814,1709597463858,-500.0,0.00022794,2]
[316710815,1709597463868,-500.0,0.00022794,2]
[316710816,1709597463877,-500.0,0.00022794,2]
[316710817,1709597463887,-719.09,0.00022794,2]
[316710818,1709597463896,-719.09,0.00022794,2]
[316710819,1709597463909,-719.09,0.00022794,2]
[316710820,1709597463919,-719.09,0.00022794,2]
[316710821,1709597463928,-500.0,0.00022794,2]
[316710822,1709597463937,-500.0,0.00022794,2]
[316710823,1709597463947,-500.0,0.00022794,2]
[316710824,1709597463956,-500.0,0.00022794,2]
[316710825,1709597463965,-500.0,0.00022794,2]
[316710826,1709597463974,-500.0,0.00022794,2]
[316710827,1709597463985,-500.0,0.00022794,2]
[316710828,1709597463994,-500.0,0.00022794,2]
[316710829,1709597464004,-500.0,0.00022794,2]
[316710830,1709597464014,-500.0,0.00022794,2]
[316710831,1709597464023,-507.71088233,0.00022794,2]
[316710832,1709597464032,-1101.65,0.00022794,2]
[316710833,1709597464041,-1101.65,0.00022794,2]
[316710834,1709597464051,-500.0,0.00022794,2]
[316710835,1709597464062,-500.0,0.00022794,2]
[316710836,1709597464071,-1476.97,0.00022794,2]
[316710837,1709597464080,-500.0,0.00022794,2]
[316710838,1709597464090,-500.0,0.00022794,2]
[316710839,1709597464099,-500.0,0.00022794,2]
[316710840,1709597464108,-500.0,0.00022794,2]
[316710841,1709597464117,-500.0,0.00022794,2]
[316710842,1709597464127,-510.39814874,0.00022794,2]
[316710843,1709597464136,-500.0,0.00022794,2]
[316710844,1709597464145,-873.64,0.00022794,2]
[316710845,1709597464155,-500.0,0.00022794,2]
[316710846,1709597464164,-873.64,0.00022794,2]
[316710847,1709597464177,-500.0,0.00022794,2]
[316710848,1709597464187,-1476.97,0.00022794,2]
[316710849,1709597464196,-500.0,0.00022794,2]
[316710850,1709597464206,-500.0,0.00022794,2]
[316710851,1709597464215,-500.0,0.00022794,2]
[316710852,1709597464224,-1476.97,0.00022794,2]
[316710853,1709597464234,-1476.97,0.00022794,2]
[316710854,1709597464244,-500.0,0.00022794,2]
[316710855,1709597464253,-1476.97,0.00022794,2]
[316710856,1709597464262,-500.0,0.00022794,2]
[316710857,1709597464271,-500.0,0.00022794,2]
[316710858,1709597464281,-500.0,0.00022794,2]
[316710859,1709597464290,-500.0,0.00022794,2]
[316710860,1709597464300,-500.0,0.00022794,2]
[316710861,1709597464311,-500.0,0.00022794,2]
[316710862,1709597464320,-500.0,0.00022794,2]
[316710863,1709597464329,-674.43,0.00022794,2]
[316710864,1709597464338,-674.43,0.00022794,2]
[316710865,1709597464348,-674.43,0.00022794,2]
[316710866,1709597464358,-674.43,0.00022794,2]
[316710867,1709597464368,-500.0,0.00022794,2]
[316710868,1709597464377,-500.0,0.00022794,2]
[316710869,1709597464387,-500.0,0.00022794,2]
[316710870,1709597464397,-500.0,0.00022794,2]
[316710871,1709597464408,-500.0,0.00022794,2]
[316710872,1709597464418,-500.0,0.00022794,2]
[316710873,1709597464427,-670.74,0.00022794,2]
[316710874,1709597464437,-670.74,0.00022794,2]
[316710875,1709597464448,-670.74,0.00022794,2]
[316710876,1709597464463,-670.74,0.00022794,2]
[316710877,1709597464474,-500.0,0.00022794,2]
[316710878,1709597464486,-500.0,0.00022794,2]
[316710879,1709597464498,-500.0,0.00022794,2]
[316710880,1709597464508,-500.0,0.00022794,2]
[316710881,1709597464518,-500.0,0.00022794,2]
[316710882,1709597464528,-500.0,0.00022794,2]
[316710883,1709597464538,-500.0,0.00022794,2]
[316710884,1709597464547,-500.0,0.00022794,2]
[316710885,1709597464558,-500.0,0.00022794,2]
[316710886,1709597464572,-500.0,0.00022794,2]
[316710887,1709597464582,-500.0,0.00022794,2]
[316710888,1709597464593,-500.0,0.00022794,2]
[316710889,1709597464602,-500.0,0.00022794,2]
[316710890,1709597464612,-500.0,0.00022794,2]
[316710891,1709597464622,-500.0,0.00022794,2]
[316710892,1709597464632,-500.0,0.00022794,2]
[316710893,1709597464641,-500.0,0.00022794,2]
[316710894,1709597464650,-500.0,0.00022794,2]
[316710895,1709597464659,-500.0,0.00022794,2]
[316710896,1709597464669,-500.0,0.00022794,2]
[316710897,1709597464681,-544.99060614,0.00022794,2]
[316710898,1709597464692,-500.0,0.00022794,2]
[316710899,1709597464702,-500.0,0.00022794,2]
[316710900,1709597464711,-500.0,0.00022794,2]
[316710901,1709597464721,-500.0,0.00022794,2]
[316710902,1709597464730,-500.0,0.00022794,2]
[316710903,1709597464739,-500.0,0.00022794,2]
[316710904,1709597464749,-500.0,0.00022794,2]
[316710905,1709597464758,-500.0,0.00022794,2]
[316710906,1709597464768,-500.0,0.00022794,2]
[316710907,1709597464777,-1277.89,0.00022794,2]
[316710908,1709597464787,-500.0,0.00022794,2]
[316710909,1709597464798,-500.0,0.00022794,2]
[316710910,1709597464807,-1277.89,0.00022794,2]
[316710911,1709597464819,-500.0,0.00022794,2]
[316710912,1709597464828,-500.0,0.00022794,2]
[316710913,1709597464836,-1277.89,0.00022794,2]
[316710914,1709597464846,-500.0,0.00022794,2]
[316710915,1709597464854,-500.0,0.00022794,2]
[316710916,1709597464864,-500.0,0.00022794,2]
[316710917,1709597464874,-1277.89,0.00022794,2]
[316710918,1709597464883,-500.0,0.00022794,2]
[316710919,1709597464892,-500.0,0.00022794,2]
[316710920,1709597464901,-500.0,0.00022794,2]
[316710921,1709597464911,-500.0,0.00022794,2]
[316710922,1709597464920,-500.0,0.00022794,2]
[316710923,1709597464930,-500.0,0.00022794,2]
[316710924,1709597464939,-500.0,0.00022794,2]
[316710925,1709597464949,-500.0,0.00022794,2]
[316710926,1709597464961,-2531.23,0.00022794,2]
[316710927,1709597464971,-2531.23,0.00022794,2]
[316710928,1709597464980,-500.0,0.00022794,2]
[316710929,1709597464989,-530.71,0.00022794,2]
[316710930,1709597464999,-530.71,0.00022794,2]
[316710931,1709597465008,-530.71,0.00022794,2]
[316710932,1709597465017,-500.0,0.00022794,2]
[316710933,1709597465027,-500.0,0.00022794,2]
[316710934,1709597465037,-530.71,0.00022794,2]
[316710935,1709597465046,-500.0,0.00022794,2]
[316710936,1709597465056,-2484.82,0.00022794,2]
[316710937,1709597465068,-500.0,0.00022794,2]
[316710938,1709597465078,-2484.82,0.00022794,2]
[316710939,1709597465087,-530.71,0.00022794,2]
[316710940,1709597465097,-500.0,0.00022794,2]
[316710941,1709597465106,-1186.96,0.00022794,2]
[316710942,1709597465321,-1186.96,0.00022794,2]
[316710943,1709597465331,-1186.96,0.00022794,2]
[316710944,1709597465340,-1186.96,0.00022794,2]
[316710945,1709597465350,-500.0,0.00022794,2]
[316710946,1709597465360,-500.0,0.00022794,2]
[316710947,1709597465369,-500.0,0.00022794,2]
[316710948,1709597465379,-632.81308813,0.00022794,2]
[316710949,1709597465389,-500.0,0.00022794,2]
[316710950,1709597465398,-500.0,0.00022794,2]
[316710951,1709597465407,-500.0,0.00022794,2]
[316710952,1709597465417,-500.0,0.00022794,2]
[316710953,1709597465426,-500.0,0.00022794,2]
[316710954,1709597465436,-500.0,0.00022794,2]
[316710955,1709597465447,-500.0,0.00022794,2]
[316710956,1709597465456,-500.0,0.00022794,2]
[316710957,1709597465466,-500.0,0.00022794,2]
[316710958,1709597465477,-281.83382339,0.00022794,2]
[316710960,1709597558034,156.5541747,0.00020273,2]
[316710961,1709597558641,155.80818056,0.00020426,2]
[316710962,1709597558708,162.94752439,0.00020091,2]
[316710963,1709597684527,10000.0,0.00027,60]
[316710964,1709597706768,6609.0,0.00027,30]
[316710965,1709597846655,155.80818056,0.00020355,2]
[316710966,1709597847861,155.80818056,0.00020356,2]
[316710967,1709597963989,-210.71210114,0.0002739,30]
[316710968,1709597964025,-123976.96136586,0.00028,30]
[316710969,1709597964049,-5000.0,0.00028234,31]
[316710970,1709597964074,-5000.0,0.00028784,31]
[316710971,1709597964101,-1865812.326533,0.00029,30]
[316710972,1709597972944,-1000000.0,0.00029,30]
[316710973,1709597973427,5000.0,0.0003,120]
[316710974,1709598005817,5212.0,0.0003,120]
[316710975,1709598060723,229.55,0.00018922,2]
[316710976,1709598148242,154.82583335,0.000201,2]
[316710977,1709598156073,153.71669566,0.00020024,2]
[316710978,1709598156405,154.28698689,0.00020152,2]
[316710979,1709598214778,202.0,0.00019976,2]
[316710980,1709598233458,32718.82326013,0.000201,2]
[316710981,1709598371284,10000.0,0.0002,2]
[316710982,1709598431432,1000.0,0.0002,2]
[316710983,1709598438320,159.38212726,0.0002011,2]
[316710984,1709598457416,161.12998901,0.00020223,2]
[316710992,1709598510174,231.69,0.00018691,2]
[316711004,1709598550316,1163.75280712,0.0002,2]
[316711010,1709598620050,212.21804317,0.0002,2]
[316711029,1709598631512,-1004.09,0.00020573,2]
[316711031,1709598631521,-155.0,0.0002077,2]
[316711033,1709598631531,-640.0,0.00020798,2]
[316711035,1709598631539,-156.55417471,0.00020863,2]
[316711037,1709598631549,-162.94752439,0.0002092,2]
[316711039,1709598631558,-161.81,0.00020922,2]
[316711040,1709598631566,-231.69,0.00020955,2]
[316711042,1709598631575,-161.09192138,0.00020996,2]
[316711044,1709598631584,-350.0,0.00021,3]
[316711046,1709598631595,-847.18,0.00021096,2]
[316711048,1709598631604,-172.9,0.00021096,2]
[316711049,1709598631613,-203.0,0.000212,2]
[316711050,1709598631622,-155.80818056,0.00021253,2]
[316711051,1709598631631,-207.74,0.0002127,2]
[316711052,1709598631641,-1556.9748,0.000213,2]
[316711053,1709598631650,-766.56029914,0.00021352,2]
[316711054,1709598631659,-838.13262812,0.00021353,2]
[316711055,1709598631669,-299.33723102,0.0002145,2]
[316711056,1709598631678,-701.56242603,0.0002145,2]
[316711057,1709598631687,-453.0,0.00021451,2]
[316711058,1709598631696,-38716.72963621,0.00021452,2]
[316711059,1709598631705,-53689.77729631,0.00021452,2]
[316711060,1709598631926,-287.80453251,0.00021452,2]
[316711061,1709598631962,-1491.39,0.00021452,2]
[316711067,1709598637612,-894.03,0.00021452,2]
[316711068,1709598637624,-1294.28411785,0.00021452,2]
[316711069,1709598637680,-2743.1516,0.00021452,2]
[316711070,1709598637691,-4334.0,0.00021452,2]
[316711077,1709598640829,-1397.7515,0.00021452,2]
[316711078,1709598640900,-4682.67041419,0.00021452,2]
[316711079,1709598640913,-2102.04500444,0.00021452,2]
[316711080,1709598640926,-2364.27144552,0.00021452,2]
[316711093,1709598642537,-9258.29176244,0.00021452,2]
[316711096,1709598642549,-39793.47599997,0.00021452,2]
[316711099,1709598642561,-2734.9,0.00021452,2]
[316711100,1709598642613,-5214.34722,0.00021452,2]
[316711101,1709598642740,-936.65621928,0.00021452,2]
[316711102,1709598642753,-20196.65665671,0.00021452,2]
[316711103,1709598642776,-21096.83278002,0.00021452,2]
[316711104,1709598642788,-6789.76490585,0.00021452,2]
[316711105,1709598642816,-611.06399724,0.00021452,2]
[316711116,1709598645851,-2227.32877971,0.00021452,2]
[316711117,1709598645864,-4087.64976,0.00021452,2]
[316711118,1709598645918,-11771.85600796,0.00021452,2]
[316711119,1709598645927,-264029.28276894,0.00021452,2]
[316711120,1709598645937,-1959.22550089,0.00021453,2]
[316711121,1709598645946,-5507.93432925,0.00021455,2]
[316711122,1709598645956,-2257.23972322,0.00021456,2]
[316711123,1709598645965,-167.74,0.00021475,2]
[316711124,1709598645975,-152.68910958,0.00021494,2]
[316711125,1709598645985,-838.13262812,0.00021574,2]
[316711126,1709598645995,-182.13533434,0.00021611,2]
[316711127,1709598646004,-1000.0,0.00021611,2]
[316711128,1709598646014,-1000.0,0.00021611,2]
[316711129,1709598646023,-1000.0,0.00021611,2]
[316711130,1709598646033,-203.65978289,0.00021611,2]
[316711131,1709598646042,-161.81,0.00021619,2]
[316711132,1709598646052,-838.13262812,0.00021794,2]
[316711133,1709598646061,-1500.0,0.000218,2]
[316711134,1709598646070,-360.0,0.00021842,2]
[316711135,1709598646080,-178.80172217,0.00021892,2]
[316711136,1709598646089,-155.54,0.00021898,2]
[316711137,1709598646098,-4973.67331397,0.000219,2]
[316711138,1709598646110,-3724.64918126,0.000219,2]
[316711139,1709598646120,-155.0,0.000219,2]
[316711140,1709598646129,-4000.0,0.000219,2]
[316711141,1709598646138,-2000.0,0.000219,2]
[316711142,1709598646148,-204.46914749,0.000219,2]
[316711143,1709598646331,-2500.0,0.00021917,2]
[316711144,1709598646352,-500.0,0.00021918,2]
[316711145,1709598646366,-150.0,0.00021918,2]
[316711146,1709598646377,-10000.0,0.00021918,2]
[316711147,1709598646386,-250.0,0.00021918,2]
[316711148,1709598646395,-155.0,0.00021918,2]
[316711149,1709598646404,-187.00996101,0.00021925,2]
[316711150,1709598646416,-870.01536874,0.00021928,2]
[316711151,1709598646426,-52614.87,0.00022,2]
[316711152,1709598646435,-362.80091857,0.00022,2]
[316711153,1709598646445,-645.0,0.00022,2]
[316711154,1709598646454,-645.0,0.00022,2]
[316711155,1709598646463,-30929.29,0.00022,2]
[316711156,1709598646473,-414955.71,0.00022,2]
[316711157,1709598646482,-1000.0,0.00022,2]
[316711158,1709598646492,-838.13262812,0.00022015,2]
[316711159,1709598646501,-3930.31,0.00022025,2]